fUSD/lending_fUSD_20251031
["ID","MTS","AMOUNT","RATE_DAILY","PERIOD"]
[392734732,1761888641089,-4493.67721706,0.00015,2]
[392734736,1761888641120,-1515.92354065,0.00015,2]
[392734760,1761888646272,-474.63069859,0.00015,2]
[392734769,1761888728814,5516.0,0.000165,5]
[392734788,1761889577663,-162.21260377,0.00013699,2]
[392734790,1761889781559,594.0,0.00013,2]
[392734794,1761889832220,-242.46739623,0.00013699,2]
[392734795,1761889832229,-255.92310162,0.00013923,2]
[392734796,1761889832241,-127.60486798,0.00013923,2]
[392734797,1761889832251,-970.24,0.00014147,2]
[392734798,1761889832260,-166.43,0.00014624,2]
[392734799,1761889832269,-1697.14051,0.0001485,2]
[392734800,1761889832278,-200.0,0.0001488,2]
[392734801,1761889832288,-1040.23985747,0.00014889,2]
[392734809,1761889832615,-159.76014253,0.00014889,2]
[392734811,1761889832624,-4818.4876,0.0001489,2]
[392734813,1761889832635,-300.0,0.00014971,2]
[392734815,1761889832643,-150.0,0.00014972,2]
[392734817,1761889832652,-301.09308738,0.00014973,2]
[392734820,1761889832663,-201.35356142,0.00014973,2]
[392734822,1761889832673,-225.74708232,0.00014973,2]
[392734824,1761889832682,-500.0,0.00014973,2]
[392734826,1761889832691,-503.85729717,0.00014973,2]
[392734828,1761889832701,-500.0,0.00014973,2]
[392734830,1761889832710,-500.0,0.00014973,2]
[392734832,1761889832719,-500.0,0.00014973,2]
[392734834,1761889832728,-500.0,0.00014973,2]
[392734836,1761889832738,-500.0,0.00014973,2]
[392734838,1761889832748,-500.0,0.00014973,2]
[392734839,1761889832758,-500.0,0.00014973,2]
[392734840,1761889832767,-500.0,0.00014973,2]
[392734841,1761889832776,-500.0,0.00014973,2]
[392734842,1761889832785,-501.43411624,0.00014973,2]
[392734843,1761889832795,-585.92668695,0.00014973,2]
[392734844,1761889832805,-501.03217744,0.00014973,2]
[392734845,1761889832814,-332.53729341,0.00014973,2]
[392734846,1761889832823,-500.0,0.00014989,2]
[392734847,1761889832832,-46.13976733,0.00014989,2]
[392734848,1761889832848,-453.86023267,0.00014989,2]
[392734849,1761889832858,-371.53646392,0.0001499,2]
[392734850,1761889832867,-371.53646392,0.0001499,2]
[392734851,1761889832876,-259.22806706,0.0001499,2]
[392734852,1761889832907,-112.30839686,0.0001499,2]
[392734853,1761889832917,-209.40437684,0.00014991,2]
[392734854,1761889832926,-500.0,0.00014991,2]
[392734855,1761889832935,-500.0,0.00014991,2]
[392734856,1761889832944,-312.06061461,0.00014991,2]
[392734857,1761889832954,-574.12855637,0.00014991,2]
[392734858,1761889832963,-500.0,0.00014991,2]
[392734859,1761889832972,-500.0,0.00014991,2]
[392734860,1761889832982,-250.0,0.00014991,2]
[392734861,1761889832991,-405.65388539,0.00014991,2]
[392734862,1761889833000,-262.95607926,0.00014991,2]
[392734863,1761889833008,-4570.887,0.00014997,2]
[392734864,1761889833017,-116.36045593,0.00014997,2]
[392734867,1761889838244,-139.97254407,0.00014997,2]
[392734868,1761889838254,-151.0,0.00014997,2]
[392734869,1761889838263,-481.92301346,0.00014999,2]
[392734870,1761889838274,-267.20910614,0.00014999,2]
[392734871,1761889838285,-75.0778804,0.00014999,2]
[392734872,1761889838295,-500.0,0.00014999,2]
[392734873,1761889838304,-500.0,0.00014999,2]
[392734874,1761889838313,-500.0,0.00014999,2]
[392734875,1761889838323,-500.0,0.00014999,2]
[392734876,1761889838332,-500.0,0.00014999,2]
[392734877,1761889838341,-500.0,0.00014999,2]
[392734878,1761889838350,-500.0,0.00014999,2]
[392734879,1761889838359,-11.90465113,0.00014999,2]
[392734880,1761889838371,-488.09534887,0.00014999,2]
[392734881,1761889838380,-500.0,0.00014999,2]
[392734882,1761889838389,-500.0,0.00014999,2]
[392734883,1761889838398,-575.35877899,0.00014999,2]
[392734884,1761889838407,-150.0,0.00014999,2]
[392734885,1761889838416,-150.0,0.00014999,2]
[392734886,1761889838426,-500.0,0.00014999,2]
[392734887,1761889838435,-150.0,0.00014999,2]
[392734888,1761889838446,-150.0,0.00014999,2]
[392734889,1761889838455,-150.0,0.00014999,2]
[392734890,1761889838464,-500.0,0.00014999,2]
[392734891,1761889838473,-500.0,0.00014999,2]
[392734892,1761889838482,-500.0,0.00014999,2]
[392734893,1761889838492,-500.0,0.00014999,2]
[392734894,1761889838502,-417.09066531,0.00014999,2]
[392734895,1761889838511,-500.0,0.00014999,2]
[392734896,1761889838520,-500.0,0.00014999,2]
[392734897,1761889838529,-500.0,0.00014999,2]
[392734898,1761889838538,-500.0,0.00014999,2]
[392734899,1761889838548,-500.0,0.00014999,2]
[392734900,1761889838557,-500.0,0.00014999,2]
[392734901,1761889838567,-500.0,0.00014999,2]
[392734902,1761889838576,-500.0,0.00014999,2]
[392734903,1761889838585,-500.0,0.00014999,2]
[392734904,1761889838594,-500.0,0.00014999,2]
[392734905,1761889838603,-500.0,0.00014999,2]
[392734906,1761889838613,-500.0,0.00014999,2]
[392734907,1761889838622,-500.0,0.00014999,2]
[392734908,1761889838631,-586.93349791,0.00014999,2]
[392734909,1761889838640,-500.0,0.00014999,2]
[392734910,1761889838649,-500.0,0.00014999,2]
[392734911,1761889838659,-500.0,0.00014999,2]
[392734912,1761889838668,-500.0,0.00014999,2]
[392734913,1761889838677,-500.0,0.00014999,2]
[392734914,1761889838687,-626.08232765,0.00014999,2]
[392734915,1761889838696,-500.0,0.00014999,2]
[392734916,1761889838706,-150.0,0.00014999,2]
[392734917,1761889838715,-150.0,0.00014999,2]
[392734918,1761889838724,-150.0,0.00014999,2]
[392734919,1761889838734,-500.0,0.00014999,2]
[392734920,1761889838744,-500.0,0.00014999,2]
[392734921,1761889838753,-201.89328932,0.00014999,2]
[392734922,1761889838762,-500.0,0.00014999,2]
[392734923,1761889838771,-500.0,0.00014999,2]
[392734924,1761889838781,-153.67600953,0.00014999,2]
[392734925,1761889838790,-500.0,0.00014999,2]
[392734926,1761889838799,-150.0,0.00014999,2]
[392734927,1761889838809,-500.0,0.00014999,2]
[392734928,1761889838818,-150.0,0.00014999,2]
[392734929,1761889838827,-154.42519293,0.00014999,2]
[392734930,1761889838837,-150.46513121,0.00014999,2]
[392734931,1761889838846,-196.15798716,0.00014999,2]
[392734932,1761889838856,-150.0,0.00014999,2]
[392734933,1761889838866,-1076.0,0.00014999,2]
[392734934,1761889838875,-500.0,0.00014999,2]
[392734935,1761889838885,-500.0,0.00014999,2]
[392734936,1761889838894,-500.0,0.00014999,2]
[392734937,1761889838903,-500.0,0.00014999,2]
[392734938,1761889838913,-500.0,0.00014999,2]
[392734939,1761889838922,-500.0,0.00014999,2]
[392734940,1761889838932,-152.70137831,0.00014999,2]
[392734941,1761889838941,-500.0,0.00014999,2]
[392734942,1761889838951,-500.0,0.00014999,2]
[392734943,1761889838960,-500.0,0.00014999,2]
[392734944,1761889838969,-500.0,0.00014999,2]
[392734945,1761889838978,-500.0,0.00014999,2]
[392734946,1761889838987,-500.0,0.00014999,2]
[392734947,1761889838996,-500.0,0.00014999,2]
[392734948,1761889839005,-500.0,0.00014999,2]
[392734949,1761889839015,-500.0,0.00014999,2]
[392734950,1761889839024,-500.0,0.00014999,2]
[392734951,1761889839033,-500.0,0.00014999,2]
[392734952,1761889839042,-500.0,0.00014999,2]
[392734953,1761889839054,-500.0,0.00014999,2]
[392734954,1761889839064,-500.0,0.00014999,2]
[392734955,1761889839073,-500.0,0.00014999,2]
[392734956,1761889839083,-500.0,0.00014999,2]
[392734957,1761889839092,-500.0,0.00014999,2]
[392734958,1761889839101,-500.0,0.00014999,2]
[392734959,1761889839111,-500.0,0.00014999,2]
[392734960,1761889839121,-500.0,0.00014999,2]
[392734961,1761889839131,-320.82256238,0.00014999,2]
[392734962,1761889839142,-2868.0,0.00015,2]
[392734963,1761889839151,-693550.38504209,0.00015,2]
[392734964,1761889839160,-2238310.17616298,0.00015,2]
[392734965,1761889839173,-8604.78397095,0.00015,2]
[392734966,1761889839184,-3121.94154672,0.00015,2]
[392734967,1761889839195,-74964.57343038,0.00015,2]
[392734968,1761889839210,-979.19393495,0.00015,2]
[392734973,1761889840586,-764179.45815193,0.00015,2]
[392734988,1761889843513,-390069.88913729,0.00015,2]
[392735000,1761890030705,469.05,7.07e-05,2]
[392735001,1761890030923,469.05,7.442e-05,2]
[392735002,1761890031188,469.05,7.814e-05,2]
[392735003,1761890031401,469.05,8.186e-05,2]
[392735004,1761890031923,469.05,8.558e-05,2]
[392735005,1761890032015,469.05,8.93e-05,2]
[392735006,1761890032102,469.05,9.302e-05,2]
[392735007,1761890032265,469.05,9.674e-05,2]
[392735008,1761890032473,469.05,0.00010046,2]
[392735009,1761890033042,469.05,0.00010418,2]
[392735010,1761890033112,469.05,0.00010791,2]
[392735011,1761890033223,469.05,0.00011163,2]
[392735012,1761890033318,469.05,0.00011535,2]
[392735013,1761890033516,469.05,0.00011907,2]
[392735014,1761890033718,469.05,0.00012279,2]
[392735015,1761890033922,360.36259135,0.00012651,2]
[392735016,1761890033946,108.68740865,0.00012651,2]
[392735017,1761890034129,469.05,0.00013023,2]
[392735018,1761890034330,469.05,0.00013395,2]
[392735019,1761890089906,637.86819718,0.000155,5]
[392735021,1761890429384,2000.0,0.00018,30]
[392735022,1761890446235,2000.0,0.00018,30]
[392735023,1761890462957,198.0,0.00018,30]
[392735025,1761891031489,-469.05,0.00013767,2]
[392735026,1761891031498,-195.0,0.00013777,2]
[392735027,1761891031507,-250.0,0.00013787,2]
[392735028,1761891031517,-1395.67,0.00014022,2]
[392735029,1761891031526,-1000.0,0.00014076,2]
[392735030,1761891031535,-794.13,0.00014085,2]
[392735031,1761891031548,-1548.32776849,0.00014086,2]
[392735032,1761891031569,-577.66223151,0.00014086,2]
[392735033,1761891031579,-469.05,0.00014139,2]
[392735034,1761891031588,-217.78,0.00014249,2]
[392735035,1761891031598,-416.0,0.00014411,2]
[392735036,1761891031608,-1200.0,0.00014697,2]
[392735037,1761891031617,-151.0,0.00014848,2]
[392735038,1761891031627,-300.0,0.00014897,2]
[392735039,1761891031636,-300.0,0.00014897,2]
[392735040,1761891031646,-300.0,0.00014898,2]
[392735041,1761891031655,-3706.914,0.00014899,2]
[392735042,1761891031664,-205.067,0.00014899,2]
[392735043,1761891031673,-150.0,0.00014899,2]
[392735044,1761891031682,-5754.06585023,0.000149,2]
[392735054,1761891032167,-6258.87332897,0.000149,2]
[392735056,1761891037372,-984.24025623,0.000149,2]
[392735057,1761891037423,-3489.48046457,0.000149,2]
[392735058,1761891037434,-545.22953539,0.000149,2]
[392735059,1761891037446,-454.77046461,0.000149,2]
[392735060,1761891037455,-2099.43452204,0.000149,2]
[392735061,1761891037465,-151.0,0.00014927,2]
[392735062,1761891037475,-182.9,0.00014928,2]
[392735063,1761891037484,-1835.2365,0.00014959,2]
[392735064,1761891037494,-151.0,0.00014967,2]
[392735065,1761891037504,-500.0,0.00014973,2]
[392735066,1761891037513,-500.0,0.00014973,2]
[392735067,1761891037522,-604.79958496,0.00014973,2]
[392735068,1761891037532,-500.0,0.00014973,2]
[392735069,1761891037541,-461.489323,0.00014973,2]
[392735070,1761891037554,-500.0,0.00014973,2]
[392735071,1761891037563,-500.0,0.00014973,2]
[392735072,1761891037573,-500.0,0.00014973,2]
[392735073,1761891037582,-500.0,0.00014973,2]
[392735074,1761891037592,-425.17065822,0.00014973,2]
[392735075,1761891037601,-500.0,0.00014973,2]
[392735076,1761891037611,-473.21088675,0.00014973,2]
[392735077,1761891037621,-2232.0,0.00014986,2]
[392735078,1761891037630,-150.0,0.00014988,2]
[392735079,1761891037640,-209.40437684,0.00014991,2]
[392735080,1761891037650,-250.0,0.00014991,2]
[392735081,1761891037661,-250.0,0.00014991,2]
[392735082,1761891037670,-250.0,0.00014991,2]
[392735083,1761891037679,-250.0,0.00014991,2]
[392735084,1761891037689,-263.15644297,0.00014991,2]
[392735085,1761891037698,-322.33539939,0.00014991,2]
[392735086,1761891038087,-177.66460061,0.00014991,2]
[392735087,1761891038096,-500.0,0.00014991,2]
[392735088,1761891038106,-500.0,0.00014991,2]
[392735089,1761891038116,-721.18,0.00014991,2]
[392735090,1761891038125,-500.0,0.00014997,2]
[392735091,1761891038134,-253.98702303,0.00014997,2]
[392735092,1761891038146,-150.0,0.00014997,2]
[392735093,1761891038156,-150.0,0.00014997,2]
[392735094,1761891038165,-150.0,0.00014997,2]
[392735095,1761891038479,-150.0,0.00014997,2]
[392735096,1761891038489,-150.0,0.00014997,2]
[392735097,1761891038498,-500.0,0.00014997,2]
[392735098,1761891038508,-500.0,0.00014997,2]
[392735099,1761891038518,-500.0,0.00014997,2]
[392735100,1761891038527,-151.0,0.00014997,2]
[392735101,1761891038537,-500.0,0.00014998,2]
[392735102,1761891038549,-500.0,0.00014998,2]
[392735103,1761891038559,-500.0,0.00014998,2]
[392735104,1761891038568,-500.0,0.00014998,2]
[392735105,1761891038577,-500.0,0.00014998,2]
[392735106,1761891038588,-580.30555702,0.00014998,2]
[392735107,1761891038598,-500.0,0.00014999,2]
[392735108,1761891038607,-500.0,0.00014999,2]
[392735109,1761891038616,-500.0,0.00014999,2]
[392735110,1761891038626,-563.45412786,0.00014999,2]
[392735111,1761891038636,-500.0,0.00014999,2]
[392735112,1761891038646,-500.0,0.00014999,2]
[392735113,1761891038655,-500.0,0.00014999,2]
[392735114,1761891038664,-500.0,0.00014999,2]
[392735115,1761891038673,-417.09066531,0.00014999,2]
[392735116,1761891038682,-500.0,0.00014999,2]
[392735117,1761891038691,-500.0,0.00014999,2]
[392735118,1761891038700,-500.0,0.00014999,2]
[392735119,1761891038709,-500.0,0.00014999,2]
[392735120,1761891038719,-500.0,0.00014999,2]
[392735121,1761891038728,-626.08232765,0.00014999,2]
[392735122,1761891038737,-500.0,0.00014999,2]
[392735123,1761891038746,-500.0,0.00014999,2]
[392735124,1761891038756,-500.0,0.00014999,2]
[392735125,1761891038765,-500.0,0.00014999,2]
[392735126,1761891038774,-500.0,0.00014999,2]
[392735127,1761891038784,-500.0,0.00014999,2]
[392735128,1761891038793,-500.0,0.00014999,2]
[392735129,1761891038803,-500.0,0.00014999,2]
[392735130,1761891038812,-500.0,0.00014999,2]
[392735131,1761891038821,-500.0,0.00014999,2]
[392735132,1761891038830,-500.0,0.00014999,2]
[392735133,1761891038840,-189.02346334,0.00014999,2]
[392735134,1761891038849,-150.0,0.00014999,2]
[392735135,1761891038858,-500.0,0.00014999,2]
[392735136,1761891038868,-150.0,0.00014999,2]
[392735137,1761891038878,-500.0,0.00014999,2]
[392735138,1761891038887,-500.0,0.00014999,2]
[392735139,1761891038897,-500.0,0.00014999,2]
[392735140,1761891038907,-500.0,0.00014999,2]
[392735141,1761891038916,-150.0,0.00014999,2]
[392735142,1761891038926,-500.0,0.00014999,2]
[392735143,1761891038935,-500.0,0.00014999,2]
[392735144,1761891038944,-500.0,0.00014999,2]
[392735145,1761891038953,-500.0,0.00014999,2]
[392735146,1761891038962,-500.0,0.00014999,2]
[392735147,1761891038972,-500.0,0.00014999,2]
[392735148,1761891038981,-500.0,0.00014999,2]
[392735149,1761891038991,-500.0,0.00014999,2]
[392735150,1761891039000,-500.0,0.00014999,2]
[392735151,1761891039010,-500.0,0.00014999,2]
[392735152,1761891039019,-500.0,0.00014999,2]
[392735153,1761891039029,-500.0,0.00014999,2]
[392735154,1761891039039,-202.41757709,0.00014999,2]
[392735155,1761891039048,-500.0,0.00014999,2]
[392735156,1761891039058,-500.0,0.00014999,2]
[392735157,1761891039068,-500.0,0.00014999,2]
[392735158,1761891039077,-500.0,0.00014999,2]
[392735159,1761891039086,-153.67600953,0.00014999,2]
[392735160,1761891039096,-320.82256238,0.00014999,2]
[392735161,1761891039105,-500.0,0.00014999,2]
[392735162,1761891039115,-211.77103381,0.00014999,2]
[392735163,1761891039124,-150.0,0.00014999,2]
[392735164,1761891039134,-500.0,0.00014999,2]
[392735165,1761891039143,-150.0,0.00014999,2]
[392735166,1761891039153,-150.0,0.00014999,2]
[392735168,1761891039162,-150.0,0.00014999,2]
[392735170,1761891039172,-154.42519293,0.00014999,2]
[392735171,1761891039181,-150.0,0.00014999,2]
[392735173,1761891039190,-150.0,0.00014999,2]
[392735174,1761891039199,-152.70137831,0.00014999,2]
[392735175,1761891039208,-150.0,0.00014999,2]
[392735176,1761891039218,-500.0,0.00014999,2]
[392735177,1761891039227,-500.0,0.00014999,2]
[392735179,1761891039237,-500.0,0.00014999,2]
[392735180,1761891039246,-500.0,0.00014999,2]
[392735181,1761891039256,-500.0,0.00014999,2]
[392735182,1761891039265,-500.0,0.00014999,2]
[392735183,1761891039274,-500.0,0.00014999,2]
[392735184,1761891039283,-500.0,0.00014999,2]
[392735185,1761891039293,-500.0,0.00014999,2]
[392735186,1761891039302,-500.0,0.00014999,2]
[392735187,1761891039311,-500.0,0.00014999,2]
[392735188,1761891039321,-500.0,0.00014999,2]
[392735189,1761891039331,-500.0,0.00014999,2]
[392735190,1761891039339,-500.0,0.00014999,2]
[392735191,1761891039349,-586.93349791,0.00014999,2]
[392735193,1761891039358,-500.0,0.00014999,2]
[392735194,1761891039368,-196.15798716,0.00014999,2]
[392735195,1761891039377,-155.0,0.00014999,2]
[392735196,1761891039386,-167.49710842,0.00014999,2]
[392735197,1761891039397,-2866.0,0.00015,2]
[392735198,1761891039406,-907926.59968083,0.00015,2]
[392735199,1761891039416,-25238.05757972,0.00015,2]
[392735200,1761891039426,-45107.59335742,0.00015,2]
[392735201,1761891039435,-162.40349485,0.00015,2]
[392735202,1761891039444,-163.30403015,0.00015,2]
[392735204,1761891039454,-1000.0,0.00015,2]
[392735206,1761891039463,-546.24391219,0.00015,2]
[392735208,1761891039473,-92231.98649142,0.00015,2]
[392735209,1761891039482,-1851004.8847157,0.00015,2]
[392735212,1761891039495,-12115.5897623,0.00015,2]
[392735213,1761891039532,-4698.29891408,0.00015,2]
[392735214,1761891039543,-1515.53108597,0.00015,2]
[392735215,1761891040511,-1606.81348876,0.00015,2]
[392735216,1761891040522,-764179.45815193,0.00015,2]
[392735217,1761891040540,-7354.31618934,0.00015,2]
[392735218,1761891040559,-566.8,0.00015,2]
[392735227,1761891042741,-188021.87551687,0.00015,2]
[392735228,1761891042752,-4024.8295,0.00015,2]
[392735231,1761891045590,-151.0,0.00014803,2]
[392735232,1761891045599,-308.27016257,0.00015,2]
[392735233,1761891045611,-2924.49257573,0.00015,2]
[392735280,1761891917146,244.62036252,0.00013488,2]
[392735282,1761891931007,150.0,0.00013488,2]
[392735284,1761892012777,-250.0,0.00014009,2]
[392735285,1761892012800,-585.9615972,0.00014249,2]
[392735286,1761892012822,-150.95848286,0.00014354,2]
[392735316,1761892231759,-195.0,0.00014542,2]
[392735317,1761892231770,-151.0,0.00014757,2]
[392735318,1761892231779,-151.0,0.00014761,2]
[392735319,1761892231788,-151.0,0.00014764,2]
[392735320,1761892231798,-151.0,0.00014769,2]
[392735321,1761892231807,-197.0,0.00014844,2]
[392735322,1761892231818,-1473.87115,0.0001485,2]
[392735323,1761892231827,-300.0,0.00014872,2]
[392735324,1761892231837,-1200.0,0.00014872,2]
[392735325,1761892231846,-300.0,0.00014872,2]
[392735326,1761892231856,-500.0,0.00014873,2]
[392735327,1761892231868,-500.0,0.00014873,2]
[392735328,1761892231878,-500.0,0.00014873,2]
[392735329,1761892231887,-526.17457653,0.00014873,2]
[392735330,1761892231896,-500.0,0.00014873,2]
[392735331,1761892231906,-500.0,0.00014873,2]
[392735332,1761892231915,-152.44776067,0.00014889,2]
[392735333,1761892231925,-291.64477581,0.00014889,2]
[392735334,1761892231934,-443.77042425,0.00014897,2]
[392735335,1761892231945,-473.01596022,0.00014897,2]
[392735336,1761892231994,-283.21361553,0.00014897,2]
[392735337,1761892232004,-2965.531,0.00014899,2]
[392735338,1761892232015,-164.053,0.00014899,2]
[392735339,1761892232025,-150.0,0.00014899,2]
[392735340,1761892232034,-3795.8554,0.000149,2]
[392735341,1761892232044,-1921.64693458,0.000149,2]
[392735342,1761892232057,-69005.60886203,0.000149,2]
[392735343,1761892232067,-294.0,0.00014904,2]
[392735345,1761892232076,-270.07333545,0.00014972,2]
[392735348,1761892232086,-500.0,0.00014973,2]
[392735350,1761892232095,-500.0,0.00014973,2]
[392735353,1761892232104,-500.0,0.00014973,2]
[392735355,1761892232114,-500.0,0.00014973,2]
[392735356,1761892232123,-161.03609932,0.00014973,2]
[392735357,1761892232132,-500.75904731,0.00014973,2]
[392735358,1761892232141,-501.83517664,0.00014973,2]
[392735359,1761892232150,-509.6404368,0.00014973,2]
[392735360,1761892232159,-505.54299483,0.00014973,2]
[392735361,1761892232169,-500.0,0.00014973,2]
[392735362,1761892232178,-500.0,0.00014973,2]
[392735363,1761892232188,-327.76019208,0.00014973,2]
[392735364,1761892232202,-509.23682617,0.00014973,2]
[392735365,1761892232211,-500.0,0.00014973,2]
[392735366,1761892232220,-554.88394503,0.00014973,2]
[392735367,1761892232230,-500.41073257,0.00014973,2]
[392735368,1761892232239,-504.64166636,0.00014973,2]
[392735369,1761892232249,-500.95543813,0.00014973,2]
[392735370,1761892232259,-500.0,0.00014973,2]
[392735371,1761892232268,-500.0,0.00014973,2]
[392735372,1761892232278,-500.0,0.00014973,2]
[392735373,1761892232287,-170.23236576,0.00014973,2]
[392735374,1761892232296,-500.0,0.00014973,2]
[392735375,1761892232306,-500.0,0.00014973,2]
[392735376,1761892232315,-155.09476708,0.00014973,2]
[392735377,1761892232325,-176.82469572,0.00014973,2]
[392735378,1761892232334,-500.0,0.00014973,2]
[392735379,1761892232344,-627.83172296,0.00014973,2]
[392735380,1761892232353,-500.0,0.00014973,2]
[392735381,1761892232363,-500.0,0.00014973,2]
[392735382,1761892232372,-500.0,0.00014973,2]
[392735383,1761892232382,-500.0,0.00014973,2]
[392735384,1761892232391,-500.0,0.00014973,2]
[392735385,1761892232401,-500.0,0.00014973,2]
[392735386,1761892232410,-197.0,0.0001498,2]
[392735387,1761892232419,-150.0,0.00014986,2]
[392735388,1761892232429,-721.18,0.00014991,2]
[392735389,1761892232438,-150.0,0.00014991,2]
[392735390,1761892232447,-150.0,0.00014991,2]
[392735391,1761892232456,-500.0,0.00014991,2]
[392735392,1761892232466,-500.0,0.00014991,2]
[392735393,1761892232476,-150.0,0.00014991,2]
[392735394,1761892232485,-150.0,0.00014991,2]
[392735395,1761892232494,-152.49763088,0.00014991,2]
[392735396,1761892232504,-151.0,0.00014991,2]
[392735397,1761892232513,-151.0,0.00014991,2]
[392735398,1761892232523,-151.0,0.00014991,2]
[392735399,1761892232533,-151.0,0.00014991,2]
[392735400,1761892232542,-500.0,0.00014991,2]
[392735401,1761892232551,-500.0,0.00014991,2]
[392735402,1761892232560,-151.0,0.00014991,2]
[392735403,1761892232570,-500.0,0.00014991,2]
[392735404,1761892232579,-500.0,0.00014991,2]
[392735405,1761892232589,-151.0,0.00014991,2]
[392735406,1761892232600,-500.0,0.00014991,2]
[392735407,1761892232610,-500.0,0.00014991,2]
[392735408,1761892232620,-151.0,0.00014991,2]
[392735409,1761892232631,-500.0,0.00014991,2]
[392735410,1761892232650,-500.0,0.00014991,2]
[392735411,1761892232661,-151.0,0.00014991,2]
[392735412,1761892232671,-500.0,0.00014991,2]
[392735413,1761892232680,-500.0,0.00014991,2]
[392735414,1761892232691,-151.0,0.00014991,2]
[392735415,1761892232702,-500.0,0.00014991,2]
[392735416,1761892232711,-500.0,0.00014991,2]
[392735417,1761892232721,-151.0,0.00014991,2]
[392735418,1761892232731,-500.0,0.00014991,2]
[392735419,1761892232741,-151.0,0.00014991,2]
[392735420,1761892232750,-465.94460227,0.00014991,2]
[392735421,1761892232760,-500.0,0.00014991,2]
[392735422,1761892232770,-151.0,0.00014991,2]
[392735423,1761892232781,-416.78515512,0.00014991,2]
[392735424,1761892232791,-151.0,0.00014991,2]
[392735425,1761892232803,-151.0,0.00014991,2]
[392735426,1761892232814,-291.98475699,0.00014991,2]
[392735427,1761892232823,-201.89328932,0.00014991,2]
[392735428,1761892232833,-500.0,0.00014991,2]
[392735429,1761892232844,-500.0,0.00014991,2]
[392735430,1761892232854,-500.0,0.00014991,2]
[392735431,1761892232865,-214.26309035,0.00014991,2]
[392735432,1761892232875,-574.12855637,0.00014991,2]
[392735433,1761892232885,-209.40437684,0.00014991,2]
[392735434,1761892232895,-151.0,0.00014991,2]
[392735435,1761892232905,-151.0,0.00014991,2]
[392735436,1761892232915,-151.0,0.00014991,2]
[392735437,1761892232925,-151.0,0.00014991,2]
[392735438,1761892232935,-151.0,0.00014991,2]
[392735439,1761892232944,-151.0,0.00014991,2]
[392735440,1761892232953,-500.0,0.00014991,2]
[392735441,1761892232963,-151.0,0.00014991,2]
[392735442,1761892232973,-1103.0,0.00014991,2]
[392735443,1761892232983,-620.0,0.00014991,2]
[392735444,1761892232992,-150.0,0.00014991,2]
[392735445,1761892233002,-150.0,0.00014991,2]
[392735446,1761892233012,-150.0,0.00014991,2]
[392735447,1761892233022,-150.0,0.00014991,2]
[392735448,1761892233032,-150.0,0.00014991,2]
[392735449,1761892233042,-500.0,0.00014991,2]
[392735450,1761892233053,-500.0,0.00014991,2]
[392735451,1761892233062,-151.0,0.00014997,2]
[392735452,1761892233072,-15384.06732477,0.00014999,2]
[392735453,1761892233082,-500.0,0.00014999,2]
[392735454,1761892233093,-500.0,0.00014999,2]
[392735455,1761892233103,-500.0,0.00014999,2]
[392735456,1761892233113,-500.0,0.00014999,2]